{"text_format":"1","workbook":"xlsx","n_sheets":2,"sheets":["Group 21 Acquisition and Li (2)","Group 21 Acquisition and Litig"],"not_rendered":{"charts":0,"images":0,"macros":1,"external_links":0,"defined_names":2,"comments":0,"pivot_tables":0},"unopened":[],"bounds":{"document_bytes":16777216,"sheet_cells":100000,"rows_first":2000,"rows_last":500,"rows_between":2000,"halvings":0,"cell_chars":16384,"cell_head_chars":4096},"cells_cut":0,"cells_raw":0,"read":"whole","date_system":"1900"}

{"sheet":"Group 21 Acquisition and Li (2)","index":0,"n_rows":100,"n_cols":19,"rows_kept":100,"cut":false,"hidden":true,"merged":[[4,1,4,3],[4,4,4,8],[4,10,4,12],[1,10,1,12],[2,5,2,6],[3,1,3,3],[3,4,3,7],[3,10,3,12],[5,4,5,8],[5,10,5,12],[6,4,6,8],[6,10,6,12],[7,4,7,8],[7,10,7,12],[24,1,24,12],[8,4,8,8],[8,10,8,12],[9,4,9,8],[9,10,9,12],[10,4,10,8],[10,10,10,12],[11,4,11,8],[11,10,11,12],[19,1,20,12],[21,1,21,12],[22,1,22,12],[59,2,59,12],[26,1,26,12],[32,1,32,12],[35,4,37,11],[35,12,37,12],[39,1,39,6],[39,10,39,12],[40,1,40,6],[43,1,43,12],[44,2,47,11],[52,1,55,12],[58,2,58,12],[80,2,80,11],[61,2,61,11],[63,3,63,11],[64,3,64,11],[65,3,65,11],[66,3,66,11],[67,3,67,11],[68,3,68,11],[70,1,70,12],[71,2,74,11],[71,12,72,12],[78,2,78,10],[102,1,102,12],[82,3,82,11],[83,3,83,11],[84,3,84,11],[85,3,85,11],[86,3,86,11],[87,3,87,11],[89,1,89,12],[90,2,93,11],[90,12,91,12],[97,1,97,11],[101,1,101,12]]}
[]
[]
[]
[null,"Consultant Contract #",null,null,null,null,null,null,"FM No(s).:"]
[null,"Project Title:"]
[null,"Prime Consultant Business Name:"]
[null,"Sub Consultant Business Name:"]
[null,"Engineer of Record:"]
[null,"Design Firm:"]
[null,"Consultant Project Manager:"]
[null,"FDOT Project Manager:"]
[null,"FDOT PM Phone No:"]
[]
[]
[]
[]
[]
[]
[]
[null,"This worksheet provides specific performance measure guidelines for the performance rating scale as it pertains to each criteria item in this evaluation area. This worksheet also serves as backup documentation for drafting and discussing the evaluations. The scores and comments must be transferred to the official evaluation within the FDOT Consultant Evaluation (CE) internal application:"]
[]
[null,"https://psice.dot.state.fl.us/"]
[null,"Access to the internal CE application for inputting performance evaluations is restricted to FDOT Project Managers."]
[]
[null,"ACQUISITION AND LITIGATION QUALITY EVALUATION CRITERIA"]
[]
[null,"GENERAL PERFORMANCE RATING SCALE"]
[null,5,"Outstanding Performance",null,null," - Consultant consistently exceeded expectations."]
[null,4,"Above Satisfactory Performance",null,null," - Consultant consistently met, often exceeded, expectations."]
[null,3,"Satisfactory Performance",null,null," - Consultant consistently met expectations.",null,null,null,null,null,null,null,null,null,null,5]
[null,2,"Below Satisfactory Performance",null,null," - Consultant inconsistently met expectations.",null,null,null,null,null,null,null,null,null,null,4.5]
[null,1,"Unacceptable Performance",null,null," - Consultant consistently failed to meet expectations.",null,null,null,null,null,null,null,null,null,null,4]
[null,"**{See specific performance measure guidelines within each criteria item}**",null,null,null,null,null,null,null,null,null,null,null,null,null,null,3.5]
[null,null,null,null,null,null,null,null,null,null,null,null,null,null,null,null,3]
[null,null,null,null,null,null,null,null,null,null,null,null,null,null,null,null,2.5]
[null,null,null,null,"TOTAL AVERAGE SCORE FOR ALL QUALITY CRITERIA:",null,null,null,null,null,null,null,{"$f":"M98","v":"Not Rated"},null,null,null,2]
[null,null,null,null,null,null,null,null,null,null,null,null,null,null,null,null,1.5]
[null,null,null,null,null,null,null,null,null,null,null,null,null,null,null,null,1]
[]
[]
[null,"FDOT Project Manager",null,null,null,null,null,null,null,null,null,"Date"]
[]
[]
[null,"General Comments:"]
[]
[]
[]
[]
[]
[]
[]
[null,"Instructions:"]
[null,"For each evaluation item below, please rate from 1 to 5 in accordance with the performance rating scale. Ratings in ½ point (0.5) increments between 1 and 5 are permitted. Comments are required for all rating scores less than 3 and greater than 4, but comments are encouraged for all evaluation items rated. \n"]
[]
[]
[]
[]
[]
[null,null,"QUALITY EVALUATION CRITERIA"]
[null,"A.","ACQUISITION",null,null,null,null,null,null,null,null,null,null,null,null,0.65]
[]
[null,null,"EXPECTATION:\n1.    Actively and in good faith pursued negotiated settlements, in a timely manner, of all parcels and business damage     \n       claims.\n2.    Complete written documentation of contacts with all persons involved in the acquisition process was provided.\n3.    Responsive to all counteroffers and inquiries submitted, in a timely manner, consistent with the Department‘s policy \n       and procedures.\n4.    Recommendations for administrative settlements were clearly written, providing full explanation and support for the \n       expenditure of public funds.\n5.    Invoices requesting warrants for settlements were accurately prepared and processed timely.\n6.    All necessary closings were conducted timely in accordance with the Department’s project schedule and in such a \n       manner as to ensure the Department received marketable title."]
[]
[null,null,"Score","Performance Measure Guidelines"]
[null,null,5,"Consultant consistently exceeded expectations."]
[null,null,4,"Consultant consistently met, often exceeded, expectations."]
[null,null,3,"Consultant consistently met expectations."]
[null,null,2,"Consultant inconsistently met expectations."]
[null,null,1,"Consultant consistently failed to meet expectations."]
[null,null,null,null,null,null,null,null,null,null,null,"Score:",null,null,null,null,{"$f":"IF((COUNT(M70)=0),\"NA\",M70*P60)","v":"NA"},{"$f":"IF(COUNT(Q70)=0,-P60,0)","v":-0.65},{"$f":"IF((COUNT(M70)=0),\"\",M70)","v":""}]
[null,"Comments:"]
[null,null,null,null,null,null,null,null,null,null,null,null,{"$f":"IF(M70=\"N/A\",\"\",(IF(M70=\"\",\"\",(IF(M70<3,\"COMMENTS REQUIRED\",(IF(M70>4,\"COMMENTS REQUIRED\",\"\")))))))","v":""}]
[]
[]
[]
[]
[]
[]
[null,"B.","LITIGATION (35%)",null,null,null,null,null,null,null,null,null,null,null,null,0.35]
[]
[null,null,"EXPECTATION:\n1.    Deliverables to be considered may include the Public Involvement Plan, newsletters, project website, stakeholder \n       meetings, Alternatives Meeting activities and documentation, Public Hearing activities and documentation, \n       miscellaneous stakeholder meeting materials, Public Involvement Activities Report, Responses to comments, etc.\n2.    Deliverables were completed as required by the scope and PD&E Manual. \n3.    Demonstrated that a thorough quality control process was followed prior to submittals.\n4.    Successfully identified and engaged all the affected communities and stakeholders.\n5.    Meetings were well organized and informative.\n6.    Meeting notifications and invitations were sent on time and in accordance with the PD&E Manual."]
[]
[null,null,"Score","Performance Measure Guidelines"]
[null,null,5,"Consultant consistently exceeded expectations."]
[null,null,4,"Consultant consistently met, often exceeded, expectations."]
[null,null,3,"Consultant consistently met expectations."]
[null,null,2,"Consultant inconsistently met expectations."]
[null,null,1,"Consultant consistently failed to meet expectations."]
[null,null,null,null,null,null,null,null,null,null,null,"Score:",null,null,null,null,{"$f":"IF((COUNT(M89)=0),\"NA\",M89*P79)","v":"NA"},{"$f":"IF(COUNT(Q89)=0,-P79,0)","v":-0.35},{"$f":"IF((COUNT(M89)=0),\"\",M89)","v":""}]
[null,"Comments:"]
[null,null,null,null,null,null,null,null,null,null,null,null,{"$f":"IF(M89=\"N/A\",\"\",(IF(M89=\"\",\"\",(IF(M89<3,\"COMMENTS REQUIRED\",(IF(M89>4,\"COMMENTS REQUIRED\",\"\")))))))","v":""}]
[]
[]
[]
[]
[]
[]
[null,"Total Average Score:",null,null,null,null,null,null,null,null,null,null,{"$f":"IF((COUNT(M70:M96)=0),\"Not Rated\",ROUND(SUM(Q70:Q96)/(1+SUM(R70:R96)),1))","v":"Not Rated"},null,null,null,{"$f":"ROUND(SUM(Q70:Q96),3)","v":0},{"$f":"ROUND(SUM(R70:R96),2)","v":-1}]
[null,null,null,null,null,null,null,null,null,null,null,null,null,null,null,null,{"$f":"(1+SUM(R70:R96))","v":0}]
[null,null,null,null,null,null,null,null,null,null,null,null,null,null,null,null,{"$f":"+Q98/Q99","v":{"$error":"#DIV/0!"}},null,{"$f":"ROUND(AVERAGE(S70:S96),1)","v":{"$error":"#DIV/0!"}}]

{"sheet":"Group 21 Acquisition and Litig","index":1,"n_rows":117,"n_cols":19,"rows_kept":117,"cut":false,"hidden":false,"merged":[[69,3,69,11],[71,3,71,11],[65,3,65,11],[69,1,69,2],[102,12,103,12],[72,12,73,12],[75,12,76,12],[66,12,67,12],[68,3,68,11],[72,3,72,11],[93,1,93,2],[93,3,93,11],[93,12,94,12],[95,3,95,11],[118,1,118,12],[117,1,117,12],[78,3,78,11],[75,3,75,11],[77,3,77,11],[75,1,75,2],[78,1,78,2],[101,3,101,11],[102,1,102,2],[102,3,102,11],[106,1,106,12],[107,2,110,11],[107,12,108,12],[114,1,114,11],[91,2,91,11],[92,3,92,11],[4,1,4,3],[4,4,4,8],[4,10,4,12],[6,4,6,8],[6,10,6,12],[5,10,5,12],[5,4,5,8],[1,10,1,12],[2,5,2,6],[3,1,3,3],[3,4,3,7],[3,10,3,12],[8,4,8,8],[8,10,8,12],[7,4,7,8],[39,10,39,12],[7,10,7,12],[19,1,20,12],[21,1,21,12],[24,1,24,12],[10,4,10,8],[10,10,10,12],[9,10,9,12],[11,10,11,12],[26,1,26,12],[32,1,32,12],[35,12,37,12],[35,4,37,11],[9,4,9,8],[39,1,39,6],[11,4,11,8],[22,1,22,12],[66,3,66,11],[43,1,43,12],[52,1,55,12],[40,1,40,6],[58,2,58,12],[44,2,47,11],[62,3,62,11],[63,3,63,11],[63,12,64,12],[115,8,116,14],[59,2,59,12],[81,1,81,12],[74,3,74,11],[98,3,98,11],[99,3,99,11],[82,2,85,11],[82,12,83,12],[89,2,89,10],[96,1,96,2],[96,3,96,11],[96,12,97,12],[61,2,61,11],[63,1,63,2],[72,1,72,2],[66,1,66,2]]}
[]
[]
[]
[null,"Consultant Contract #",null,null,null,null,null,null,"FM No(s).:"]
[null,"Project Title:"]
[null,"Prime Consultant Business Name:"]
[null,"Sub Consultant Business Name:"]
[null,"Engineer of Record:"]
[null,"Design Firm:"]
[null,"Consultant Project Manager:"]
[null,"FDOT Project Manager:"]
[null,"FDOT PM Phone No:"]
[]
[]
[]
[]
[]
[]
[]
[null,"This worksheet provides specific performance measure guidelines for the performance rating scale as it pertains to each criteria item in this evaluation area. This worksheet also serves as backup documentation for drafting and discussing the evaluations. The scores and comments must be transferred to the official evaluation within the FDOT Consultant Evaluation (CE) internal application:"]
[]
[null,"https://ce.fdot.gov/"]
[null,"Access to the internal CE application for inputting performance evaluations is restricted to FDOT Project Managers."]
[]
[null,"ACQUISITION AND LITIGATION QUALITY EVALUATION CRITERIA",null,null,null,null,null,null,null,null,null,null,null,null,null,"Sections graded:",null,{"$f":"COUNT(M81,M106)","v":0}]
[]
[null,"GENERAL PERFORMANCE RATING SCALE"]
[null,5,"Outstanding Performance",null,null," - Consultant consistently exceeded expectations."]
[null,4,"Above Satisfactory Performance",null,null," - Consultant consistently met, often exceeded, expectations."]
[null,3,"Satisfactory Performance",null,null," - Consultant consistently met expectations.",null,null,null,null,null,null,null,null,null,null,5]
[null,2,"Below Satisfactory Performance",null,null," - Consultant inconsistently met expectations.",null,null,null,null,null,null,null,null,null,null,4.5]
[null,1,"Unacceptable Performance",null,null," - Consultant consistently failed to meet expectations.",null,null,null,null,null,null,null,null,null,null,4]
[null,"**{See specific performance measure guidelines within each criteria item}**",null,null,null,null,null,null,null,null,null,null,null,null,null,null,3.5]
[null,null,null,null,null,null,null,null,null,null,null,null,null,null,null,null,3]
[null,null,null,null,null,null,null,null,null,null,null,null,null,null,null,null,2.5]
[null,null,null,null,{"$f":"IF($R$25=2,\"TOTAL WEIGHTED SCORE FOR ALL QUALITY CRITERIA\",\"TOTAL AVERAGE SCORE FOR ALL QUALITY CRITERIA\")","v":"TOTAL AVERAGE SCORE FOR ALL QUALITY CRITERIA"},null,null,null,null,null,null,null,{"$f":"M115","v":"NOT RATED"},null,null,null,2]
[null,null,null,null,null,null,null,null,null,null,null,null,null,null,null,null,1.5]
[null,null,null,null,null,null,null,null,null,null,null,null,null,null,null,null,1]
[]
[]
[null,"FDOT Project Manager",null,null,null,null,null,null,null,null,null,"Date"]
[]
[]
[null,"General Comments:"]
[]
[]
[]
[]
[]
[]
[]
[null,"Instructions:"]
[null,"For each evaluation item below, please rate from 1 to 5 in accordance with the performance rating scale. Ratings in ½ point (0.5) increments between 1 and 5 are permitted. Do not rate an evaluation item if it is not applicable to this evaluation. Comments are required for all rating scores less than 3 and greater than 4, but comments are encouraged for all evaluation items rated. \n"]
[]
[]
[]
[]
[]
[null,null,"QUALITY EVALUATION CRITERIA"]
[null,"A.","ACQUISITION  (65%)",null,null,null,null,null,null,null,null,null,null,null,null,0.65]
[]
[null,null,"Evaluation Items",null,null,null,null,null,null,null,null,null,"Score"]
[null,null,1,"Actively and in good faith pursued negotiated settlements, in a timely manner, of all parcels and business damage claims.",null,null,null,null,null,null,null,null,null,null,null,null,null,{"$f":"IF(M63>0,1,0)","v":0}]
[null,"Comments:",null,null,null,null,null,null,null,null,null,null,{"$f":"IF(M63=\"N/A\",\"\",(IF(M63=\"\",\"\",(IF(M63<3,\"COMMENTS REQUIRED\",(IF(M63>4,\"COMMENTS REQUIRED\",\"\")))))))","v":""},null,{"$f":"+IF(M64=\"comments required\", 1,0)","v":0}]
[]
[null,null,2,"Complete written documentation of contacts with all persons involved in the acquisition process was provided.",null,null,null,null,null,null,null,null,null,null,null,null,null,{"$f":"IF(M66>0,1,0)","v":0}]
[null,"Comments:",null,null,null,null,null,null,null,null,null,null,{"$f":"IF(M66=\"N/A\",\"\",(IF(M66=\"\",\"\",(IF(M66<3,\"COMMENTS REQUIRED\",(IF(M66>4,\"COMMENTS REQUIRED\",\"\")))))))","v":""},null,{"$f":"+IF(M67=\"comments required\", 1,0)","v":0}]
[]
[null,null,3,"Responsive to all counteroffers and inquiries submitted, in a timely manner, consistent with the Department‘s policy and procedures.",null,null,null,null,null,null,null,null,null,null,null,null,null,{"$f":"IF(M69>0,1,0)","v":0}]
[null,"Comments:",null,null,null,null,null,null,null,null,null,null,{"$f":"IF(M69=\"N/A\",\"\",(IF(M69=\"\",\"\",(IF(M69<3,\"COMMENTS REQUIRED\",(IF(M69>4,\"COMMENTS REQUIRED\",\"\")))))))","v":""},null,{"$f":"+IF(M70=\"comments required\", 1,0)","v":0}]
[]
[null,null,4,"Recommendations for administrative settlements were clearly written, providing full explanation and support for the expenditure of public funds.",null,null,null,null,null,null,null,null,null,null,null,null,null,{"$f":"IF(M72>0,1,0)","v":0}]
[null,"Comments:",null,null,null,null,null,null,null,null,null,null,{"$f":"IF(M72=\"N/A\",\"\",(IF(M72=\"\",\"\",(IF(M72<3,\"COMMENTS REQUIRED\",(IF(M72>4,\"COMMENTS REQUIRED\",\"\")))))))","v":""},null,{"$f":"+IF(M73=\"comments required\", 1,0)","v":0}]
[]
[null,null,5,"Invoices requesting warrants for settlements were accurately prepared and processed timely.",null,null,null,null,null,null,null,null,null,null,null,null,null,{"$f":"IF(M75>0,1,0)","v":0}]
[null,"Comments:",null,null,null,null,null,null,null,null,null,null,{"$f":"IF(M75=\"N/A\",\"\",(IF(M75=\"\",\"\",(IF(M75<3,\"COMMENTS REQUIRED\",(IF(M75>4,\"COMMENTS REQUIRED\",\"\")))))))","v":""},null,{"$f":"+IF(M76=\"comments required\", 1,0)","v":0}]
[]
[null,null,6,"All necessary closings were conducted timely in accordance with the Department’s project schedule and in such a manner as to ensure the Department received marketable title.",null,null,null,null,null,null,null,null,null,null,null,null,null,{"$f":"IF(M78>0,1,0)","v":0}]
[null,"Comments:",null,null,null,null,null,null,null,null,null,null,{"$f":"IF(M78=\"N/A\",\"\",(IF(M78=\"\",\"\",(IF(M78<3,\"COMMENTS REQUIRED\",(IF(M78>4,\"COMMENTS REQUIRED\",\"\")))))))","v":""},null,{"$f":"+IF(M79=\"comments required\", 1,0)","v":0}]
[]
[null,null,null,null,null,null,null,null,null,null,null," Evaluation Section Average Score:",{"$f":"IF((COUNT(M63:M79)=0),\"Not Rated\", AVERAGE(M63:M79))","v":"Not Rated"},null,null,null,{"$f":"IF((COUNT(M81)=0),\"NA\",M81*P60)","v":"NA"},{"$f":"IF(COUNT(Q81)=0,-P60,0)","v":-0.65},{"$f":"IF((COUNT(M81)=0),\"\",M81)","v":""}]
[null,"Combined Evaluation Section Comments:"]
[null,null,null,null,null,null,null,null,null,null,null,null,{"$f":"IF(M81=\"Not Rated\",\"\",(IF(M81=\"\",\"\",(IF(M81<3,\"COMMENTS REQUIRED\",(IF(M81>4,\"COMMENTS REQUIRED\",\"\")))))))","v":""}]
[]
[]
[]
[]
[]
[]
[null,"B.","LITIGATION (35%)",null,null,null,null,null,null,null,null,null,null,null,null,0.35]
[]
[null,null,"Evaluation Items",null,null,null,null,null,null,null,null,null,"Score"]
[null,null,1,"Accurate suit information was submitted promptly in accordance with the Department’s project schedule.",null,null,null,null,null,null,null,null,null,null,null,null,null,{"$f":"IF(M93>0,1,0)","v":0}]
[null,"Comments:",null,null,null,null,null,null,null,null,null,null,{"$f":"IF(M93=\"N/A\",\"\",(IF(M93=\"\",\"\",(IF(M93<3,\"COMMENTS REQUIRED\",(IF(M93>4,\"COMMENTS REQUIRED\",\"\")))))))","v":""},null,{"$f":"+IF(M94=\"comments required\", 1,0)","v":0}]
[]
[null,null,2,"Lawsuit packages and/or suit information were accurately prepared, styled, and filed in a timely manner in accordance with the Department’s guidelines.",null,null,null,null,null,null,null,null,null,null,null,null,null,{"$f":"IF(M96>0,1,0)","v":0}]
[null,"Comments:",null,null,null,null,null,null,null,null,null,null,{"$f":"IF(M96=\"N/A\",\"\",(IF(M96=\"\",\"\",(IF(M96<3,\"COMMENTS REQUIRED\",(IF(M96>4,\"COMMENTS REQUIRED\",\"\")))))))","v":""},null,{"$f":"+IF(M97=\"comments required\", 1,0)","v":0}]
[]
[null,null,3,"Assistance as required was provided to the Department attorneys in obtaining orders of taking.",null,null,null,null,null,null,null,null,null,null,null,null,null,{"$f":"IF(M99>0,1,0)","v":0}]
[null,"Comments:",null,null,null,null,null,null,null,null,null,null,{"$f":"IF(M99=\"N/A\",\"\",(IF(M99=\"\",\"\",(IF(M99<3,\"COMMENTS REQUIRED\",(IF(M99>4,\"COMMENTS REQUIRED\",\"\")))))))","v":""},null,{"$f":"+IF(M100=\"comments required\", 1,0)","v":0}]
[]
[null,null,4,"Invoices requesting warrants for orders of taking deposits were accurately prepared and processed timely.",null,null,null,null,null,null,null,null,null,null,null,null,null,{"$f":"IF(M102>0,1,0)","v":0}]
[null,"Comments:",null,null,null,null,null,null,null,null,null,null,{"$f":"IF(M102=\"N/A\",\"\",(IF(M102=\"\",\"\",(IF(M102<3,\"COMMENTS REQUIRED\",(IF(M102>4,\"COMMENTS REQUIRED\",\"\")))))))","v":""},null,{"$f":"+IF(M103=\"comments required\", 1,0)","v":0}]
[]
[]
[null,null,null,null,null,null,null,null,null,null,null," Evaluation Section Average Score:",{"$f":"IF((COUNT(M92:M104)=0),\"Not Rated\", AVERAGE(M92:M104))","v":"Not Rated"},null,null,null,{"$f":"IF((COUNT(M106)=0),\"NA\",M106*P90)","v":"NA"},{"$f":"IF(COUNT(Q106)=0,-P90,0)","v":-0.35},{"$f":"IF((COUNT(M106)=0),\"\",M106)","v":""}]
[null,"Combined Evaluation Section Comments:"]
[null,null,null,null,null,null,null,null,null,null,null,null,{"$f":"IF(M106=\"Not Rated\",\"\",(IF(M106=\"\",\"\",(IF(M106<3,\"COMMENTS REQUIRED\",(IF(M106>4,\"COMMENTS REQUIRED\",\"\")))))))","v":""}]
[]
[]
[]
[]
[]
[]
[null,{"$f":"IF($R$25=2,\"TOTAL WEIGHTED SCORE\",\"TOTAL AVERAGE SCORE\")","v":"TOTAL AVERAGE SCORE"},null,null,null,null,null,null,null,null,null,null,{"$f":"IF((COUNT(M81:M106)=0),\"NOT RATED\",ROUND(SUM(Q81:Q106)/(1+SUM(R81,R106)),1))","v":"NOT RATED"},null,null,null,{"$f":"ROUND(SUM(Q81:Q113),3)","v":0},{"$f":"ROUND(SUM(R81:R113),2)","v":-1}]
[null,null,null,null,null,null,null,null,"Reminder: The TOTAL SCORE will ONLY be WEIGHTED if BOTH Evaluation Sections are scored. ",null,null,null,null,null,null,null,{"$f":"(1+SUM(R81:R113))","v":0}]
[null,null,null,null,null,null,null,null,null,null,null,null,null,null,null,null,{"$f":"+Q115/Q116","v":{"$error":"#DIV/0!"}},null,{"$f":"ROUND(AVERAGE(S81:S113),1)","v":{"$error":"#DIV/0!"}}]